[Event "Titled Tuesday Blitz September 13 Early 2022"]
[White "Piesik, Piotr"]
[Black "Vidit, Santosh Gujrathi"]
[WhiteFideId "1136194"]
[BlackFideId "5029465"]
[WhiteElo "2221"]
[BlackElo "2654"]
[Result "0-1"]
[Round "02"]
[TimeControl "180+1"]
[Date "2022.09.13"]
[WhiteClock "0:00:02"]
[BlackClock "0:00:08"]

1. Nf3 {[%clk 0:02:35]}  d5 {[%clk 0:02:59]} 2. g3 {[%clk 0:02:35]}  c6 {[%clk 0:02:55]} 3. Bg2 {[%clk 0:02:35]}  Bg4 {[%clk 0:02:54]} 4. O-O {[%clk 0:02:36]}  Nf6 {[%clk 0:02:54]} 5. d3 {[%clk 0:02:36]}  Nbd7 {[%clk 0:02:54]} 6. Nbd2 {[%clk 0:02:37]}  e5 {[%clk 0:02:54]} 7. e4 {[%clk 0:02:37]}  Bd6 {[%clk 0:02:53]} 8. h3 {[%clk 0:02:36]}  Bh5 {[%clk 0:02:53]} 9. Qe1 {[%clk 0:02:33]}  O-O {[%clk 0:02:49]} 10. Nh4 {[%clk 0:02:33]}  dxe4 {[%clk 0:02:45]} 11. dxe4 {[%clk 0:02:33]}  Re8 {[%clk 0:02:43]} 12. Nf5 {[%clk 0:02:31]}  Bf8 {[%clk 0:02:43]} 13. a4 {[%clk 0:02:31]}  a5 {[%clk 0:02:41]} 14. Nc4 {[%clk 0:02:30]}  Qc7 {[%clk 0:02:40]} 15. Bd2 {[%clk 0:02:28]}  b6 {[%clk 0:02:40]} 16. Bc3 {[%clk 0:02:27]}  Nc5 {[%clk 0:02:40]} 17. g4 {[%clk 0:02:22]}  Bg6 {[%clk 0:02:39]} 18. Ng3 {[%clk 0:02:22]}  Nfd7 {[%clk 0:02:37]} 19. h4 {[%clk 0:02:19]}  h6 {[%clk 0:02:38]} 20. g5 {[%clk 0:02:05]}  hxg5 {[%clk 0:02:34]} 21. h5 {[%clk 0:02:01]}  Bh7 {[%clk 0:02:34]} 22. Bh3 {[%clk 0:02:01]}  Ne6 {[%clk 0:02:31]} 23. Bxe6 {[%clk 0:01:59]}  Rxe6 {[%clk 0:02:32]} 24. Rd1 {[%clk 0:01:58]}  Nc5 {[%clk 0:02:28]} 25. b3 {[%clk 0:01:55]}  Rae8 {[%clk 0:02:27]} 26. f3 {[%clk 0:01:49]}  Rf6 {[%clk 0:02:18]} 27. Kg2 {[%clk 0:01:45]}  Ne6 {[%clk 0:01:52]} 28. Bxe5 {[%clk 0:01:40]}  Nf4+ {[%clk 0:01:52]} 29. Bxf4 {[%clk 0:01:40]}  gxf4 {[%clk 0:01:47]} 30. Nh1 {[%clk 0:01:35]}  b5 {[%clk 0:01:45]} 31. Qxa5 {[%clk 0:01:29]}  Qe7 {[%clk 0:01:14]} 32. axb5 {[%clk 0:01:22]}  Bxe4 {[%clk 0:00:44]} 33. Rde1 {[%clk 0:01:19]}  Re6 {[%clk 0:00:41]} 34. Rxe4 {[%clk 0:01:07]}  Qg5+ {[%clk 0:00:34]} 35. Kf2 {[%clk 0:00:44]}  Bc5+ {[%clk 0:00:22]} 36. Ke1 {[%clk 0:00:40]}  Rxe4+ {[%clk 0:00:20]} 37. fxe4 {[%clk 0:00:41]}  Rxe4+ {[%clk 0:00:21]} 38. Kd1 {[%clk 0:00:41]}  f3 {[%clk 0:00:17]} 39. c3 {[%clk 0:00:31]}  Qg2 {[%clk 0:00:13]} 40. Nd2 {[%clk 0:00:29]}  Re2 {[%clk 0:00:10]} 41. Qd8+ {[%clk 0:00:29]}  Kh7 {[%clk 0:00:11]} 42. Qd3+ {[%clk 0:00:29]}  Kg8 {[%clk 0:00:11]} 43. Rxf3 {[%clk 0:00:21]}  Rxd2+ {[%clk 0:00:11]} 44. Qxd2 {[%clk 0:00:21]}  Qxf3+ {[%clk 0:00:12]} 45. Qe2 {[%clk 0:00:16]}  Qxh1+ {[%clk 0:00:12]} 46. Kc2 {[%clk 0:00:16]}  cxb5 {[%clk 0:00:11]} 47. Qe8+ {[%clk 0:00:13]}  Bf8 {[%clk 0:00:10]} 48. Qxb5 {[%clk 0:00:12]}  Qe4+ {[%clk 0:00:10]} 49. Kb2 {[%clk 0:00:12]}  f5 {[%clk 0:00:10]} 50. b4 {[%clk 0:00:08]}  f4 {[%clk 0:00:11]} 51. Kc1 {[%clk 0:00:02]}  f3 {[%clk 0:00:11]} 52. Kd2 {[%clk 0:00:02]}  Bd6 {[%clk 0:00:08]} 0-1


[Site "https://www.chess.com"]

[Event "Titled Tuesday Blitz September 13 Early 2022"]
[White "Puranik, Abhimanyu"]
[Black "Sargsyan, Anna M."]
[WhiteFideId "5061245"]
[BlackFideId "13308130"]
[WhiteElo "2520"]
[BlackElo "2271"]
[Result "1-0"]
[Round "02"]
[TimeControl "180+1"]
[Date "2022.09.13"]
[WhiteClock "0:00:02"]
[BlackClock "0:00:02"]

1. c4 {[%clk 0:03:00]}  c6 {[%clk 0:02:59]} 2. Nf3 {[%clk 0:02:59]}  d5 {[%clk 0:03:00]} 3. g3 {[%clk 0:03:00]}  Nf6 {[%clk 0:02:59]} 4. Bg2 {[%clk 0:03:00]}  g6 {[%clk 0:03:00]} 5. b3 {[%clk 0:02:59]}  Bg7 {[%clk 0:03:00]} 6. Bb2 {[%clk 0:02:59]}  O-O {[%clk 0:03:01]} 7. O-O {[%clk 0:02:59]}  Nbd7 {[%clk 0:02:59]} 8. d4 {[%clk 0:02:56]}  Ne4 {[%clk 0:02:59]} 9. a4 {[%clk 0:02:54]}  Re8 {[%clk 0:02:58]} 10. a5 {[%clk 0:02:53]}  a6 {[%clk 0:02:52]} 11. e3 {[%clk 0:02:51]}  e6 {[%clk 0:02:45]} 12. Nc3 {[%clk 0:02:39]}  Nxc3 {[%clk 0:02:40]} 13. Bxc3 {[%clk 0:02:39]}  b5 {[%clk 0:02:28]} 14. axb6 {[%clk 0:02:38]}  Qxb6 {[%clk 0:02:28]} 15. Qc2 {[%clk 0:02:25]}  Bb7 {[%clk 0:02:27]} 16. c5 {[%clk 0:02:11]}  Qc7 {[%clk 0:02:22]} 17. b4 {[%clk 0:02:03]}  e5 {[%clk 0:02:21]} 18. dxe5 {[%clk 0:01:56]}  Nxe5 {[%clk 0:02:20]} 19. Nxe5 {[%clk 0:01:57]}  Bxe5 {[%clk 0:02:21]} 20. Bxe5 {[%clk 0:01:57]}  Qxe5 {[%clk 0:02:18]} 21. Rfd1 {[%clk 0:01:57]}  Bc8 {[%clk 0:02:14]} 22. Ra3 {[%clk 0:01:44]}  Bf5 {[%clk 0:02:10]} 23. Qa2 {[%clk 0:01:43]}  Rab8 {[%clk 0:02:02]} 24. Rxa6 {[%clk 0:01:38]}  Bg4 {[%clk 0:02:00]} 25. Rd2 {[%clk 0:01:11]}  Rxb4 {[%clk 0:01:54]} 26. h3 {[%clk 0:01:07]}  Bd7 {[%clk 0:01:44]} 27. Ra7 {[%clk 0:01:07]}  Be6 {[%clk 0:01:42]} 28. Qa5 {[%clk 0:01:01]}  Rb1+ {[%clk 0:01:33]} 29. Kh2 {[%clk 0:01:01]}  h5 {[%clk 0:01:12]} 30. Ra8 {[%clk 0:01:00]}  Rxa8 {[%clk 0:01:05]} 31. Qxa8+ {[%clk 0:00:59]}  Kh7 {[%clk 0:01:06]} 32. h4 {[%clk 0:00:44]}  Qc3 {[%clk 0:01:01]} 33. Rd4 {[%clk 0:00:14]}  Qc1 {[%clk 0:00:59]} 34. g4 {[%clk 0:00:14]}  Qg1+ {[%clk 0:00:14]} 35. Kg3 {[%clk 0:00:14]}  g5 {[%clk 0:00:14]} 36. Qd8 {[%clk 0:00:13]}  Rb2 {[%clk 0:00:12]} 37. Qf6 {[%clk 0:00:08]}  gxh4+ {[%clk 0:00:11]} 38. Kxh4 {[%clk 0:00:04]}  Qxg2 {[%clk 0:00:11]} 39. Kg5 {[%clk 0:00:02]}  Qxf2 {[%clk 0:00:05]} 40. Qh6+ {[%clk 0:00:01]}  Kg8 {[%clk 0:00:05]} 41. Rf4 {[%clk 0:00:01]}  Qxe3 {[%clk 0:00:05]} 42. Kf6 {[%clk 0:00:01]}  Qc3+ {[%clk 0:00:05]} 43. Ke7 {[%clk 0:00:01]}  Qg7 {[%clk 0:00:05]} 44. Qxg7+ {[%clk 0:00:01]}  Kxg7 {[%clk 0:00:05]} 45. gxh5 {[%clk 0:00:01]}  Rb7+ {[%clk 0:00:05]} 46. Kd6 {[%clk 0:00:02]}  d4 {[%clk 0:00:04]} 47. Kxc6 {[%clk 0:00:01]}  Rd7 {[%clk 0:00:04]} 48. Rf2 {[%clk 0:00:02]}  d3 {[%clk 0:00:05]} 49. Rd2 {[%clk 0:00:02]}  Kf6 {[%clk 0:00:04]} 50. Kb6 {[%clk 0:00:03]}  Bf5 {[%clk 0:00:04]} 51. c6 {[%clk 0:00:04]}  Rd4 {[%clk 0:00:04]} 52. c7 {[%clk 0:00:05]}  Rc4 {[%clk 0:00:04]} 53. Kb7 {[%clk 0:00:05]}  Rc2 {[%clk 0:00:05]} 54. Rd1 {[%clk 0:00:04]}  Rb2+ {[%clk 0:00:04]} 55. Kc6 {[%clk 0:00:04]}  Rc2+ {[%clk 0:00:04]} 56. Kd6 {[%clk 0:00:04]}  d2 {[%clk 0:00:04]} 57. h6 {[%clk 0:00:04]}  Kg6 {[%clk 0:00:04]} 58. Ke5 {[%clk 0:00:05]}  Bd3 {[%clk 0:00:03]} 59. Rxd2 {[%clk 0:00:04]}  Rxd2 {[%clk 0:00:03]} 60. c8=Q {[%clk 0:00:04]}  Re2+ {[%clk 0:00:03]} 61. Kf4 {[%clk 0:00:04]}  Rf2+ {[%clk 0:00:03]} 62. Ke3 {[%clk 0:00:03]}  Rf6 {[%clk 0:00:04]} 63. Qg8+ {[%clk 0:00:02]}  Kh5 {[%clk 0:00:03]} 64. Kxd3 {[%clk 0:00:02]}  Kxh6 {[%clk 0:00:03]} 65. Ke4 {[%clk 0:00:02]}  Rg6 {[%clk 0:00:02]} 66. Qxf7 {[%clk 0:00:02]} 1-0


[Site "https://www.chess.com"]

[Event "Titled Tuesday Blitz September 13 Early 2022"]
[White "Sarana, Alexey"]
[Black "Averjanov, Alexey"]
[WhiteFideId "24133795"]
[BlackFideId "14109867"]
[WhiteElo "2689"]
[BlackElo "2680"]
[Result "1/2-1/2"]
[Round "02"]
[TimeControl "180+1"]
[Date "2022.09.13"]
[WhiteClock "0:00:05"]
[BlackClock "0:00:11"]

1. c4 {[%clk 0:03:00]}  c5 {[%clk 0:02:59]} 2. Nf3 {[%clk 0:02:59]}  Nc6 {[%clk 0:02:58]} 3. Nc3 {[%clk 0:03:00]}  g6 {[%clk 0:02:58]} 4. e3 {[%clk 0:03:00]}  Nf6 {[%clk 0:02:58]} 5. d4 {[%clk 0:03:00]}  cxd4 {[%clk 0:02:59]} 6. exd4 {[%clk 0:03:01]}  d5 {[%clk 0:02:59]} 7. cxd5 {[%clk 0:03:02]}  Nxd5 {[%clk 0:02:59]} 8. Qb3 {[%clk 0:03:02]}  Nxc3 {[%clk 0:02:58]} 9. Bc4 {[%clk 0:03:01]}  e6 {[%clk 0:02:59]} 10. bxc3 {[%clk 0:03:00]}  Bg7 {[%clk 0:02:59]} 11. Ba3 {[%clk 0:03:00]}  Bf8 {[%clk 0:02:59]} 12. O-O {[%clk 0:02:58]}  Bxa3 {[%clk 0:02:58]} 13. Qxa3 {[%clk 0:02:58]}  Qe7 {[%clk 0:02:58]} 14. Qc1 {[%clk 0:02:57]}  O-O {[%clk 0:02:54]} 15. h4 {[%clk 0:02:57]}  h5 {[%clk 0:02:36]} 16. Qh6 {[%clk 0:02:52]}  Qf6 {[%clk 0:02:36]} 17. Rae1 {[%clk 0:02:52]}  Bd7 {[%clk 0:02:30]} 18. Re4 {[%clk 0:02:41]}  Rac8 {[%clk 0:02:23]} 19. Bd3 {[%clk 0:02:26]}  Rfe8 {[%clk 0:01:55]} 20. Rfe1 {[%clk 0:02:12]}  Qg7 {[%clk 0:01:52]} 21. Qg5 {[%clk 0:02:08]}  Ne7 {[%clk 0:01:46]} 22. Ne5 {[%clk 0:02:03]}  f6 {[%clk 0:01:42]} 23. Qd2 {[%clk 0:01:59]}  fxe5 {[%clk 0:01:41]} 24. Rxe5 {[%clk 0:02:00]}  Nf5 {[%clk 0:01:27]} 25. g3 {[%clk 0:01:59]}  Qf6 {[%clk 0:01:24]} 26. Bc2 {[%clk 0:01:57]}  Kg7 {[%clk 0:01:13]} 27. Bb3 {[%clk 0:01:57]}  Re7 {[%clk 0:01:09]} 28. c4 {[%clk 0:01:49]}  Rce8 {[%clk 0:01:05]} 29. R1e4 {[%clk 0:01:45]}  Bc6 {[%clk 0:01:01]} 30. Rf4 {[%clk 0:01:45]}  Rd8 {[%clk 0:00:58]} 31. Qb4 {[%clk 0:01:19]}  Rxd4 {[%clk 0:00:50]} 32. Rexf5 {[%clk 0:01:15]}  Red7 {[%clk 0:00:22]} 33. Rxd4 {[%clk 0:00:58]}  Qxd4 {[%clk 0:00:15]} 34. Qf8+ {[%clk 0:00:57]}  Kh7 {[%clk 0:00:15]} 35. Rf7+ {[%clk 0:00:46]}  Rxf7 {[%clk 0:00:16]} 36. Qxf7+ {[%clk 0:00:47]}  Kh8 {[%clk 0:00:14]} 37. Kh2 {[%clk 0:00:32]}  Qe4 {[%clk 0:00:12]} 38. Qf8+ {[%clk 0:00:19]}  Kh7 {[%clk 0:00:13]} 39. Qf7+ {[%clk 0:00:19]}  Kh8 {[%clk 0:00:13]} 40. Qf6+ {[%clk 0:00:05]}  Kh7 {[%clk 0:00:11]} 41. Qf7+ {[%clk 0:00:05]}  Kh8 {[%clk 0:00:11]} 1/2-1/2


[Site "https://www.chess.com"]

[Event "Titled Tuesday Blitz September 13 Early 2022"]
[White "Svane, Rasmus"]
[Black "Shailesh, Dravid"]
[WhiteFideId "4657101"]
[BlackFideId "25017969"]
[WhiteElo "2674"]
[BlackElo "2142"]
[Result "1-0"]
[Round "02"]
[TimeControl "180+1"]
[Date "2022.09.13"]
[WhiteClock "0:00:31"]
[BlackClock "0:00:18"]

1. Nf3 {[%clk 0:03:00]}  Nf6 {[%clk 0:02:59]} 2. g3 {[%clk 0:03:00]}  d5 {[%clk 0:02:59]} 3. Bg2 {[%clk 0:03:00]}  c6 {[%clk 0:03:00]} 4. O-O {[%clk 0:02:59]}  g6 {[%clk 0:03:00]} 5. c4 {[%clk 0:02:58]}  Bg7 {[%clk 0:03:00]} 6. b3 {[%clk 0:02:59]}  O-O {[%clk 0:03:00]} 7. Bb2 {[%clk 0:02:59]}  a5 {[%clk 0:03:00]} 8. Nc3 {[%clk 0:02:56]}  Re8 {[%clk 0:02:59]} 9. d4 {[%clk 0:02:56]}  Bf5 {[%clk 0:02:55]} 10. Nh4 {[%clk 0:02:52]}  Be6 {[%clk 0:02:54]} 11. Qd3 {[%clk 0:02:37]}  Na6 {[%clk 0:02:49]} 12. a3 {[%clk 0:02:30]}  Qb6 {[%clk 0:02:16]} 13. Na4 {[%clk 0:02:25]}  Qa7 {[%clk 0:01:59]} 14. Rac1 {[%clk 0:02:22]}  dxc4 {[%clk 0:01:57]} 15. bxc4 {[%clk 0:02:21]}  Rad8 {[%clk 0:01:57]} 16. Rfd1 {[%clk 0:02:06]}  b5 {[%clk 0:01:40]} 17. cxb5 {[%clk 0:01:45]}  cxb5 {[%clk 0:01:39]} 18. Qxb5 {[%clk 0:01:25]}  Rb8 {[%clk 0:01:35]} 19. Qxa5 {[%clk 0:01:23]}  Bb3 {[%clk 0:01:31]} 20. Rd2 {[%clk 0:01:21]}  g5 {[%clk 0:01:10]} 21. Nf5 {[%clk 0:01:18]}  Bf8 {[%clk 0:01:02]} 22. Nc5 {[%clk 0:01:07]}  Rb6 {[%clk 0:00:56]} 23. d5 {[%clk 0:01:05]}  e6 {[%clk 0:00:48]} 24. dxe6 {[%clk 0:00:52]}  fxe6 {[%clk 0:00:38]} 25. Nxb3 {[%clk 0:00:46]}  exf5 {[%clk 0:00:35]} 26. Bd4 {[%clk 0:00:41]}  Ree6 {[%clk 0:00:28]} 27. Qxf5 {[%clk 0:00:36]}  Qf7 {[%clk 0:00:25]} 28. Qxg5+ {[%clk 0:00:33]}  Bg7 {[%clk 0:00:19]} 29. Bxb6 {[%clk 0:00:33]}  Rxb6 {[%clk 0:00:18]} 30. Rc8+ {[%clk 0:00:31]}  Ne8 {[%clk 0:00:18]} 1-0


[Site "https://www.chess.com"]

[Event "Titled Tuesday Blitz September 13 Early 2022"]
[White "Weetik, Vjacheslav"]
[Black "Terry, Renato"]
[WhiteFideId "4153472"]
[BlackFideId "3803457"]
[WhiteElo "2469"]
[BlackElo "2577"]
[Result "1-0"]
[Round "02"]
[TimeControl "180+1"]
[Date "2022.09.13"]
[WhiteClock "0:00:02"]
[BlackClock "0:00:01"]

1. d4 {[%clk 0:02:59]}  Nf6 {[%clk 0:02:59]} 2. c4 {[%clk 0:02:57]}  d6 {[%clk 0:02:55]} 3. Nf3 {[%clk 0:02:55]}  Nbd7 {[%clk 0:02:55]} 4. Nc3 {[%clk 0:02:52]}  e5 {[%clk 0:02:56]} 5. e4 {[%clk 0:02:52]}  Be7 {[%clk 0:02:56]} 6. Be2 {[%clk 0:02:53]}  O-O {[%clk 0:02:56]} 7. O-O {[%clk 0:02:53]}  c6 {[%clk 0:02:57]} 8. Re1 {[%clk 0:02:52]}  Qc7 {[%clk 0:02:57]} 9. Bf1 {[%clk 0:02:51]}  Re8 {[%clk 0:02:57]} 10. d5 {[%clk 0:02:51]}  a5 {[%clk 0:02:56]} 11. Be3 {[%clk 0:02:43]}  Ng4 {[%clk 0:02:56]} 12. Bd2 {[%clk 0:02:40]}  Qb6 {[%clk 0:02:54]} 13. Re2 {[%clk 0:02:36]}  Nc5 {[%clk 0:02:31]} 14. h3 {[%clk 0:02:30]}  Nf6 {[%clk 0:02:31]} 15. Be3 {[%clk 0:02:28]}  Qc7 {[%clk 0:02:31]} 16. Nd2 {[%clk 0:02:07]}  Bd7 {[%clk 0:02:29]} 17. Re1 {[%clk 0:02:06]}  Qb8 {[%clk 0:02:26]} 18. Rb1 {[%clk 0:01:54]}  Rc8 {[%clk 0:02:18]} 19. a3 {[%clk 0:01:45]}  cxd5 {[%clk 0:02:16]} 20. cxd5 {[%clk 0:01:44]}  b5 {[%clk 0:02:13]} 21. b4 {[%clk 0:01:44]}  axb4 {[%clk 0:02:13]} 22. Rxb4 {[%clk 0:01:43]}  Nd3 {[%clk 0:02:00]} 23. Bxd3 {[%clk 0:01:42]}  Rxc3 {[%clk 0:02:00]} 24. Bxb5 {[%clk 0:01:03]}  Rcxa3 {[%clk 0:01:51]} 25. Qb1 {[%clk 0:00:46]}  Bxb5 {[%clk 0:01:45]} 26. Rxb5 {[%clk 0:00:46]}  Qe8 {[%clk 0:01:41]} 27. Rb7 {[%clk 0:00:44]}  R3a4 {[%clk 0:01:34]} 28. Qd3 {[%clk 0:00:36]}  h6 {[%clk 0:01:28]} 29. Reb1 {[%clk 0:00:35]}  Nh5 {[%clk 0:01:15]} 30. g3 {[%clk 0:00:31]}  Bf8 {[%clk 0:01:08]} 31. Kg2 {[%clk 0:00:31]}  Qc8 {[%clk 0:01:08]} 32. Qe2 {[%clk 0:00:26]}  Nf6 {[%clk 0:01:05]} 33. Qf3 {[%clk 0:00:27]}  Qd8 {[%clk 0:00:41]} 34. Rc1 {[%clk 0:00:17]}  Rc8 {[%clk 0:00:39]} 35. Rcb1 {[%clk 0:00:12]}  Be7 {[%clk 0:00:21]} 36. g4 {[%clk 0:00:12]}  Nh7 {[%clk 0:00:20]} 37. Nf1 {[%clk 0:00:11]}  Qe8 {[%clk 0:00:08]} 38. Ng3 {[%clk 0:00:11]}  Bf8 {[%clk 0:00:08]} 39. Nf5 {[%clk 0:00:11]}  Ng5 {[%clk 0:00:07]} 40. Bxg5 {[%clk 0:00:09]}  hxg5 {[%clk 0:00:08]} 41. h4 {[%clk 0:00:09]}  g6 {[%clk 0:00:08]} 42. Ne3 {[%clk 0:00:09]}  gxh4 {[%clk 0:00:07]} 43. g5 {[%clk 0:00:10]}  Be7 {[%clk 0:00:03]} 44. Qg4 {[%clk 0:00:08]}  Qd8 {[%clk 0:00:04]} 45. Rxe7 {[%clk 0:00:06]}  Qxe7 {[%clk 0:00:02]} 46. Qxc8+ {[%clk 0:00:05]}  Kg7 {[%clk 0:00:03]} 47. Rb8 {[%clk 0:00:03]}  Qxg5+ {[%clk 0:00:02]} 48. Kh3 {[%clk 0:00:03]}  Qh6 {[%clk 0:00:01]} 49. Qf8+ {[%clk 0:00:02]}  Kh7 {[%clk 0:00:01]} 50. Qg8# {[%clk 0:00:02]} 1-0


[Site "https://www.chess.com"]

[Event "Titled Tuesday Blitz September 13 Early 2022"]
[White "Andreikin, Dmitry"]
[Black "Averjanov, Alexey"]
[WhiteFideId "4158814"]
[BlackFideId "14109867"]
[WhiteElo "2736"]
[BlackElo "2686"]
[Result "1-0"]
[Round "03"]
[TimeControl "180+1"]
[Date "2022.09.13"]
[WhiteClock "0:01:25"]
[BlackClock "0:00:05"]

1. e4 {[%clk 0:03:00]}  c6 {[%clk 0:02:59]} 2. Nf3 {[%clk 0:02:57]}  d5 {[%clk 0:02:59]} 3. exd5 {[%clk 0:02:58]}  cxd5 {[%clk 0:02:59]} 4. Ne5 {[%clk 0:02:58]}  Nf6 {[%clk 0:02:59]} 5. d4 {[%clk 0:02:58]}  g6 {[%clk 0:02:58]} 6. Bd3 {[%clk 0:02:57]}  Bg7 {[%clk 0:02:58]} 7. O-O {[%clk 0:02:57]}  Bf5 {[%clk 0:02:58]} 8. Bxf5 {[%clk 0:02:54]}  gxf5 {[%clk 0:02:59]} 9. Qf3 {[%clk 0:02:37]}  e6 {[%clk 0:02:52]} 10. Qg3 {[%clk 0:02:35]}  Rg8 {[%clk 0:02:51]} 11. Qb3 {[%clk 0:02:33]}  Qb6 {[%clk 0:02:22]} 12. Qxb6 {[%clk 0:02:27]}  axb6 {[%clk 0:02:23]} 13. c3 {[%clk 0:02:25]}  Nc6 {[%clk 0:02:23]} 14. Nd3 {[%clk 0:02:25]}  Ne4 {[%clk 0:02:21]} 15. Bf4 {[%clk 0:02:20]}  Kd7 {[%clk 0:02:19]} 16. f3 {[%clk 0:02:13]}  Nd6 {[%clk 0:02:18]} 17. Nd2 {[%clk 0:02:12]}  Bh8 {[%clk 0:02:10]} 18. a3 {[%clk 0:02:11]}  Nc4 {[%clk 0:02:04]} 19. Rad1 {[%clk 0:02:06]}  Ke7 {[%clk 0:01:52]} 20. Rfe1 {[%clk 0:01:55]}  b5 {[%clk 0:01:46]} 21. Nb3 {[%clk 0:01:54]}  b6 {[%clk 0:01:44]} 22. Re2 {[%clk 0:01:51]}  Rg6 {[%clk 0:01:36]} 23. Bg3 {[%clk 0:01:51]}  Bf6 {[%clk 0:01:32]} 24. Nf4 {[%clk 0:01:50]}  Kd7 {[%clk 0:01:24]} 25. Nxg6 {[%clk 0:01:50]}  hxg6 {[%clk 0:01:25]} 26. Nc1 {[%clk 0:01:49]}  Bg5 {[%clk 0:01:18]} 27. Nd3 {[%clk 0:01:46]}  f6 {[%clk 0:01:08]} 28. Bf4 {[%clk 0:01:35]}  Re8 {[%clk 0:01:00]} 29. Rde1 {[%clk 0:01:35]}  Nd8 {[%clk 0:00:45]} 30. g3 {[%clk 0:01:32]}  Nb7 {[%clk 0:00:45]} 31. h4 {[%clk 0:01:32]}  Bxf4 {[%clk 0:00:41]} 32. Nxf4 {[%clk 0:01:33]}  Nd8 {[%clk 0:00:35]} 33. Nxd5 {[%clk 0:01:32]}  Rf8 {[%clk 0:00:30]} 34. Nf4 {[%clk 0:01:32]}  e5 {[%clk 0:00:26]} 35. Nxg6 {[%clk 0:01:32]}  Rg8 {[%clk 0:00:25]} 36. h5 {[%clk 0:01:32]}  Nf7 {[%clk 0:00:24]} 37. Kf2 {[%clk 0:01:32]}  Kd6 {[%clk 0:00:22]} 38. b3 {[%clk 0:01:32]}  Na5 {[%clk 0:00:19]} 39. dxe5+ {[%clk 0:01:32]}  fxe5 {[%clk 0:00:18]} 40. Nxe5 {[%clk 0:01:32]}  Nxe5 {[%clk 0:00:18]} 41. Rxe5 {[%clk 0:01:32]}  Nxb3 {[%clk 0:00:18]} 42. Rxb5 {[%clk 0:01:32]}  Nc5 {[%clk 0:00:15]} 43. Rxb6+ {[%clk 0:01:30]}  Kd5 {[%clk 0:00:16]} 44. Rd1+ {[%clk 0:01:29]}  Kc4 {[%clk 0:00:16]} 45. Rc6 {[%clk 0:01:29]}  f4 {[%clk 0:00:10]} 46. gxf4 {[%clk 0:01:27]}  Rf8 {[%clk 0:00:05]} 47. h6 {[%clk 0:01:26]}  Rf7 {[%clk 0:00:05]} 48. Rh1 {[%clk 0:01:25]}  Rh7 {[%clk 0:00:05]} 49. Rh5 {[%clk 0:01:25]} 1-0


[Site "https://www.chess.com"]

[Event "Titled Tuesday Blitz September 13 Early 2022"]
[White "Bethke, Richard"]
[Black "Acor, Corey"]
[WhiteFideId "12959243"]
[BlackFideId "2024861"]
[WhiteElo "2369"]
[BlackElo "2340"]
[Result "0-1"]
[Round "03"]
[TimeControl "180+1"]
[Date "2022.09.13"]
[WhiteClock "0:00:02"]
[BlackClock "0:00:03"]

1. e4 {[%clk 0:03:00]}  e5 {[%clk 0:02:59]} 2. Nf3 {[%clk 0:03:00]}  Nc6 {[%clk 0:02:59]} 3. Bc4 {[%clk 0:03:00]}  Bc5 {[%clk 0:02:59]} 4. O-O {[%clk 0:02:59]}  Nf6 {[%clk 0:02:58]} 5. d3 {[%clk 0:03:00]}  d6 {[%clk 0:02:58]} 6. c3 {[%clk 0:02:59]}  Bb6 {[%clk 0:02:55]} 7. a4 {[%clk 0:02:58]}  h6 {[%clk 0:02:53]} 8. Nbd2 {[%clk 0:02:52]}  O-O {[%clk 0:02:52]} 9. h3 {[%clk 0:02:50]}  Be6 {[%clk 0:02:48]} 10. Bxe6 {[%clk 0:02:20]}  fxe6 {[%clk 0:02:48]} 11. Qb3 {[%clk 0:02:17]}  Qe8 {[%clk 0:02:41]} 12. Nc4 {[%clk 0:02:16]}  Nh5 {[%clk 0:02:06]} 13. a5 {[%clk 0:02:09]}  Bc5 {[%clk 0:02:05]} 14. Qxb7 {[%clk 0:02:09]}  Qd7 {[%clk 0:01:32]} 15. b4 {[%clk 0:01:12]}  Rab8 {[%clk 0:01:20]} 16. Qa6 {[%clk 0:01:12]}  Bxb4 {[%clk 0:00:48]} 17. cxb4 {[%clk 0:01:12]}  Nxb4 {[%clk 0:00:49]} 18. Qxa7 {[%clk 0:00:58]}  Ra8 {[%clk 0:00:40]} 19. Qe3 {[%clk 0:00:57]}  Nc2 {[%clk 0:00:38]} 20. Qd2 {[%clk 0:00:57]}  Nxa1 {[%clk 0:00:39]} 21. Qb2 {[%clk 0:00:57]}  Qa4 {[%clk 0:00:25]} 22. Bxh6 {[%clk 0:00:43]}  gxh6 {[%clk 0:00:26]} 23. Rxa1 {[%clk 0:00:43]}  Qd7 {[%clk 0:00:26]} 24. d4 {[%clk 0:00:33]}  Qg7 {[%clk 0:00:24]} 25. Ne1 {[%clk 0:00:15]}  exd4 {[%clk 0:00:21]} 26. a6 {[%clk 0:00:14]}  Nf4 {[%clk 0:00:17]} 27. Kh2 {[%clk 0:00:10]}  d5 {[%clk 0:00:14]} 28. exd5 {[%clk 0:00:10]}  exd5 {[%clk 0:00:15]} 29. Nd2 {[%clk 0:00:10]}  c5 {[%clk 0:00:15]} 30. Qa2 {[%clk 0:00:04]}  c4 {[%clk 0:00:14]} 31. Rb1 {[%clk 0:00:04]}  Ne2 {[%clk 0:00:11]} 32. Ndf3 {[%clk 0:00:03]}  Nc3 {[%clk 0:00:11]} 33. Qb2 {[%clk 0:00:04]}  Nxb1 {[%clk 0:00:11]} 34. Qxb1 {[%clk 0:00:05]}  Rxa6 {[%clk 0:00:10]} 35. Qb5 {[%clk 0:00:05]}  Rd6 {[%clk 0:00:10]} 36. Qc5 {[%clk 0:00:05]}  Rg6 {[%clk 0:00:08]} 37. Qxd5+ {[%clk 0:00:04]}  Kh7 {[%clk 0:00:07]} 38. Qxc4 {[%clk 0:00:04]}  Rd8 {[%clk 0:00:06]} 39. Qd3 {[%clk 0:00:04]}  Qf6 {[%clk 0:00:06]} 40. g3 {[%clk 0:00:03]}  Kg7 {[%clk 0:00:06]} 41. Ng2 {[%clk 0:00:03]}  Rg5 {[%clk 0:00:05]} 42. Nxg5 {[%clk 0:00:03]}  hxg5 {[%clk 0:00:06]} 43. h4 {[%clk 0:00:03]}  gxh4 {[%clk 0:00:05]} 44. gxh4 {[%clk 0:00:03]}  Qxf2 {[%clk 0:00:04]} 45. Qe4 {[%clk 0:00:03]}  Qf6 {[%clk 0:00:04]} 46. h5 {[%clk 0:00:03]}  d3 {[%clk 0:00:04]} 47. Nh4 {[%clk 0:00:03]}  Qd6+ {[%clk 0:00:03]} 48. Kh3 {[%clk 0:00:03]}  Qd5 {[%clk 0:00:02]} 49. Nf5+ {[%clk 0:00:03]}  Kf6 {[%clk 0:00:02]} 50. Qh4+ {[%clk 0:00:01]}  Kxf5 {[%clk 0:00:02]} 51. Qg4+ {[%clk 0:00:02]}  Ke5 {[%clk 0:00:03]} 52. Qg5+ {[%clk 0:00:02]}  Kd6 {[%clk 0:00:03]} 53. Qxd8+ {[%clk 0:00:02]}  Kc5 {[%clk 0:00:04]} 54. Qc7+ {[%clk 0:00:02]}  Qc6 {[%clk 0:00:02]} 55. Qe7+ {[%clk 0:00:02]}  Qd6 {[%clk 0:00:03]} 56. Qa7+ {[%clk 0:00:02]}  Kc4 {[%clk 0:00:03]} 57. Qa4+ {[%clk 0:00:02]}  Kc3 {[%clk 0:00:03]} 58. Qa5+ {[%clk 0:00:02]}  Kc2 {[%clk 0:00:03]} 59. h6 {[%clk 0:00:02]}  Qxh6+ {[%clk 0:00:02]} 60. Kg3 {[%clk 0:00:03]}  Qd6+ {[%clk 0:00:02]} 61. Kg2 {[%clk 0:00:02]}  d2 {[%clk 0:00:03]} 62. Qa3 {[%clk 0:00:02]}  Qxa3 {[%clk 0:00:03]} 0-1


[Site "https://www.chess.com"]